bitfinex-derivatives/quotes_BTCF0:USTF0_20250108
["timestamp","ask_amount","ask_price","bid_price","bid_amount"]
[1736371438154,0.056108,94178.0,94177.0,0.03110799]
[1736371438350,0.057108,94178.0,94177.0,0.03110799]
[1736371439258,0.058108,94178.0,94177.0,0.03110799]
[1736371440251,0.057108,94178.0,94177.0,0.03110799]
[1736371440448,0.006,94178.0,94177.0,0.03110799]
[1736371441762,0.005,94178.0,94177.0,0.03110799]
[1736371441966,0.058108,94178.0,94177.0,0.03110799]
[1736371442260,0.056108,94178.0,94177.0,0.03110799]
[1736371442561,0.003,94178.0,94166.0,0.3608]
[1736371442861,0.053109,94176.0,94175.0,0.053108]
[1736371444365,0.054109,94176.0,94175.0,0.053108]
[1736371444664,0.058109,94176.0,94175.0,0.053108]
[1736371444968,0.057109,94176.0,94175.0,0.053108]
[1736371445166,0.058109,94176.0,94175.0,0.053108]
[1736371445566,0.005,94176.0,94152.0,0.053122]
[1736371445758,0.16166855,94167.0,94166.0,0.053114]
[1736371445960,0.053114,94167.0,94166.0,0.053114]
[1736371446159,0.053118,94161.0,94159.0,0.053118]
[1736371446461,0.053118,94161.0,94160.0,0.053118]
[1736371446663,0.053118,94159.0,94157.0,0.37618137]
[1736371446856,0.053118,94159.0,94157.0,0.37562137]
[1736371447265,0.3812,94168.0,94159.0,0.053118]
[1736371447456,0.053117,94163.0,94159.0,0.053118]
[1736371447655,0.054117,94161.0,94159.0,0.053118]
[1736371447866,0.001,94159.0,94157.0,0.37562137]
[1736371448467,0.053117,94161.0,94157.0,0.37562137]
[1736371448766,0.053118,94160.0,94157.0,0.37562137]
[1736371449162,0.001,94159.0,94157.0,0.37562137]
[1736371450069,0.053119,94158.0,94157.0,0.37562137]
[1736371450254,0.05312,94157.0,94149.0,0.00056]
[1736371450459,0.053119,94158.0,94137.0,0.2501]
[1736371450659,0.10855455,94150.0,94137.0,0.2501]
[1736371450969,0.053125,94149.0,94144.0,0.053127]
[1736371452260,0.10855455,94150.0,94140.0,0.002]
[1736371452466,0.3608,94163.0,94147.0,0.3608]
[1736371452467,0.053121,94155.0,94147.0,0.3608]
[1736371452773,0.053121,94155.0,94149.0,0.053124]
[1736371453072,0.10855455,94160.0,94149.0,0.053124]
[1736371453274,0.053121,94154.0,94149.0,0.053124]
[1736371454374,0.053121,94154.0,94150.0,0.053123]
[1736371456275,0.053121,94154.0,94150.0,0.054123]
[1736371456981,0.053122,94153.0,94150.0,0.054123]
[1736371457680,0.053122,94153.0,94150.0,0.03212299]
[1736371457976,0.053122,94153.0,94150.0,0.03112299]
[1736371459075,0.10855455,94160.0,94150.0,0.01461435]
[1736371459279,0.053121,94156.0,94153.0,0.053122]
[1736371459484,0.053121,94155.0,94153.0,0.053122]
[1736371461471,0.054121,94155.0,94153.0,0.053122]
[1736371462177,0.055121,94155.0,94153.0,0.053122]
[1736371462378,0.056121,94155.0,94153.0,0.053122]
[1736371462581,0.053121,94154.0,94153.0,0.03112199]
[1736371462880,0.053123,94152.0,94149.0,0.053124]
[1736371463077,0.053123,94152.0,94151.0,0.053123]
[1736371464883,0.054123,94152.0,94151.0,0.053123]
[1736371465272,0.056123,94152.0,94151.0,0.053123]
[1736371466880,0.05313,94139.0,94138.0,0.0006]
[1736371467081,0.10855455,94148.0,94136.0,0.00159325]
[1736371467578,0.00380001,94152.0,94144.0,0.3608]
[1736371467784,0.003,94152.0,94150.0,0.053123]
[1736371468086,0.002,94152.0,94151.0,0.053123]
[1736371468285,0.3608,94161.0,94155.0,0.053121]
[1736371468286,0.413918,94161.0,94155.0,0.053121]
[1736371468475,0.3608,94161.0,94153.0,0.3608]
[1736371468675,0.053118,94160.0,94156.0,0.05312]
[1736371469977,0.3608,94161.0,94160.0,0.053118]
[1736371470176,0.22171226,94177.0,94176.0,0.053109]
[1736371470685,0.18008225,94177.0,94176.0,0.053109]
[1736371470889,0.25429032,94183.0,94176.0,1.553109]
[1736371471071,0.27705384,94189.0,94188.0,0.053102]
[1736371471691,0.2,94200.0,94199.0,0.053096]
[1736371474385,0.2,94200.0,94199.0,0.054096]
[1736371474590,0.2,94200.0,94199.0,0.057096]
[1736371475087,0.2,94200.0,94199.0,0.056096]
[1736371476583,0.2,94200.0,94199.0,0.055096]
[1736371477277,0.2,94200.0,94199.0,0.056096]
[1736371477984,0.2,94200.0,94199.0,0.055096]
[1736371478382,0.2,94200.0,94199.0,1.555096]
[1736371478584,0.2,94200.0,94199.0,1.556096]
[1736371479289,0.2,94200.0,94199.0,0.07099867]
[1736371480089,0.2,94200.0,94199.0,0.06999867]
[1736371481191,0.2,94200.0,94199.0,0.07099867]
[1736371481580,0.2,94200.0,94199.0,0.06899867]
[1736371481777,0.2,94200.0,94199.0,0.06999867]
[1736371483784,0.2,94200.0,94199.0,0.07099867]
[1736371485088,0.2,94200.0,94199.0,0.07199867]
[1736371485276,0.2,94200.0,94199.0,1.57199867]
[1736371486986,0.2,94200.0,94199.0,1.57399867]
[1736371487493,0.2,94200.0,94199.0,1.57099867]
[1736371487685,0.2,94200.0,94199.0,1.57199867]
[1736371488292,0.2,94200.0,94199.0,1.57399867]
[1736371488592,0.2,94200.0,94199.0,1.57499867]
[1736371488796,0.2,94200.0,94199.0,1.56999867]
[1736371489093,0.2,94200.0,94199.0,0.07299867]
[1736371490184,0.2,94200.0,94199.0,0.07199867]
[1736371490590,0.2,94200.0,94199.0,0.07399867]
[1736371491295,0.2,94200.0,94199.0,0.07199867]
[1736371491488,0.2,94200.0,94199.0,1.57199867]
[1736371492490,0.04061382,94200.0,94199.0,1.57199867]
[1736371493288,0.04061382,94200.0,94199.0,1.57399867]
[1736371494190,0.04161382,94200.0,94199.0,1.57899867]
[1736371494888,0.04161382,94200.0,94199.0,1.57499867]
[1736371495087,0.04161382,94200.0,94199.0,1.93579867]
[1736371496185,0.04161382,94200.0,94199.0,1.57499867]
[1736371496392,0.04161382,94200.0,94199.0,1.93579867]
[1736371498201,0.1233,94215.0,94214.0,0.053088]
[1736371500394,0.04996623,94219.0,94216.0,0.053086]
[1736371500594,0.04996623,94219.0,94218.0,0.053085]
[1736371501800,0.05096623,94219.0,94218.0,0.053085]
[1736371502501,0.05396623,94219.0,94218.0,0.03108499]
[1736371502699,0.05396623,94219.0,94213.0,0.053088]
[1736371503000,0.053087,94216.0,94215.0,0.053087]
[1736371503794,0.1285,94218.0,94217.0,0.053086]
[1736371504101,0.004,94219.0,94218.0,0.053085]
[1736371504301,0.1,94220.0,94219.0,0.053085]
[1736371504302,0.08404383,94220.0,94219.0,0.053085]
[1736371504600,0.02162237,94220.0,94219.0,1.553085]
[1736371505397,0.1,94240.0,94219.0,1.5]
[1736371505601,0.1,94240.0,94239.0,0.053074]
[1736371507698,0.103,94240.0,94239.0,0.053074]
[1736371507999,0.11,94240.0,94239.0,0.054074]
[1736371508205,0.05014,94240.0,94239.0,0.054074]
[1736371508400,0.05014,94240.0,94239.0,1.554074]
[1736371508998,0.04314,94240.0,94239.0,1.553074]
[1736371509202,0.04314,94240.0,94239.0,1.57187407]
[1736371509803,0.04014,94240.0,94239.0,1.57387407]
[1736371510800,0.04014,94240.0,94239.0,0.07287407]
[1736371511608,0.04014,94240.0,94239.0,0.07087407]
[1736371511808,0.04014,94240.0,94239.0,0.07287407]
[1736371511997,0.04014,94240.0,94239.0,0.01980007]
[1736371512708,0.04014,94240.0,94239.0,0.01880007]
[1736371512909,0.04014,94240.0,94239.0,0.07187307]
[1736371513502,0.04014,94240.0,94239.0,0.06987307]
[1736371513703,0.04014,94240.0,94239.0,0.07087307]
[1736371514300,0.04014,94240.0,94239.0,0.06987307]
[1736371514502,0.04014,94240.0,94239.0,0.07087307]
[1736371514811,0.04014,94240.0,94231.0,0.3608]
[1736371514812,0.04014,94240.0,94231.0,0.55021419]
[1736371515005,0.053076,94235.0,94231.0,0.56356742]
[1736371515511,0.1233,94234.0,94231.0,0.37415323]
[1736371515804,0.053077,94232.0,94231.0,0.37415323]
[1736371516610,0.053077,94232.0,94231.0,0.37615323]
[1736371516806,0.1233,94234.0,94231.0,0.37615323]
[1736371517701,0.1233,94234.0,94231.0,0.35415322]
[1736371517897,0.1233,94234.0,94231.0,0.35215322]
[1736371518107,0.1233,94234.0,94233.0,0.053077]
[1736371518714,0.129,94239.0,94238.0,0.053074]
[1736371519207,0.129,94239.0,94238.0,1.553074]
[1736371520807,0.129,94239.0,94238.0,1.554074]
[1736371521006,0.129,94239.0,94238.0,0.054074]
[1736371521422,0.131,94239.0,94238.0,0.054074]
[1736371521609,0.131,94239.0,94238.0,0.053074]
[1736371522000,0.129,94239.0,94234.0,0.00056]
[1736371522204,0.053076,94235.0,94231.0,0.01335323]
[1736371522403,0.053076,94234.0,94223.0,0.18941419]
[1736371522608,0.10855455,94233.0,94222.0,0.18941419]
[1736371522906,0.16163155,94233.0,94226.0,0.053081]
[1736371523208,0.1203,94232.0,94222.0,0.18941419]
[1736371523415,0.05308,94228.0,94222.0,0.20257921]
[1736371523712,0.1249,94227.0,94222.0,0.01316502]
[1736371524008,0.1249,94227.0,94208.0,0.89029]
[1736371524009,0.053082,94224.0,94216.0,0.053086]
[1736371524212,0.1249,94227.0,94216.0,0.053086]
[1736371524213,0.053083,94222.0,94216.0,0.053086]
[1736371524406,0.10855455,94226.0,94213.0,0.37375603]
[1736371524612,0.16163555,94226.0,94213.0,0.37375603]
[1736371524814,0.10855455,94226.0,94213.0,0.37375603]
[1736371525309,0.10855455,94226.0,94220.0,0.053084]
[1736371525709,0.10855455,94226.0,94213.0,0.37675603]
[1736371525907,0.10855455,94226.0,94222.0,0.053082]
[1736371526104,0.17898,94227.0,94222.0,0.053082]
[1736371526410,0.17898,94227.0,94223.0,0.053082]
[1736371526411,0.17798,94227.0,94223.0,0.053082]
[1736371527914,0.053081,94226.0,94223.0,0.053082]
[1736371528517,0.053081,94226.0,94223.0,0.054082]
[1736371529107,0.001,94226.0,94213.0,0.3608]
[1736371529313,0.001,94226.0,94213.0,0.413888]
[1736371529514,0.001,94226.0,94225.0,0.053081]
[1736371530513,0.001,94226.0,94225.0,1.553081]
[1736371530913,0.053078,94231.0,94225.0,0.053081]
[1736371531412,0.053078,94231.0,94225.0,0.055081]
[1736371531614,0.053078,94231.0,94225.0,0.060081]
[1736371532215,0.053078,94231.0,94225.0,0.055081]
[1736371532523,0.055078,94231.0,94225.0,0.055081]
[1736371533014,0.055078,94231.0,94225.0,0.053081]
[1736371533208,0.056078,94231.0,94225.0,0.053081]
[1736371533919,0.055078,94231.0,94225.0,0.053081]
[1736371534114,0.053078,94231.0,94225.0,0.053081]
[1736371535317,0.053078,94231.0,94226.0,0.05308]
[1736371536908,0.001,94231.0,94225.0,0.01349799]
[1736371537109,0.001,94231.0,94221.0,0.3608]
[1736371537307,0.001,94231.0,94230.0,0.053078]
[1736371537720,0.002,94231.0,94230.0,0.053078]
[1736371538314,0.001,94231.0,94230.0,0.180778]
[1736371538612,0.001,94231.0,94230.0,1.806078]
[1736371539215,0.001,94231.0,94230.0,1.811078]
[1736371539940,0.04014,94240.0,94239.0,0.053073]
[1736371541351,0.04014,94240.0,94239.0,1.553073]
[1736371541542,0.00917,94240.0,94239.0,1.74248719]
[1736371541736,1e-08,94240.0,94239.0,1.74548719]
[1736371542641,1e-08,94240.0,94239.0,1.75048719]
[1736371542952,1e-08,94240.0,94239.0,1.57398215]
[1736371543541,0.1,94260.0,94259.0,0.053062]
[1736371544936,0.101,94260.0,94259.0,0.053062]
[1736371545541,0.101,94260.0,94253.0,0.301765]
[1736371545740,0.101,94260.0,94252.0,0.3608]
[1736371546024,0.053063,94258.0,94252.0,0.3608]
[1736371546222,0.3608,94258.0,94240.0,0.053072]
[1736371546426,0.3608,94250.0,94238.0,0.18981653]
[1736371546826,0.3608,94250.0,94242.0,0.053072]
[1736371547221,0.3608,94250.0,94238.0,0.20295977]
[1736371547448,0.3608,94250.0,94245.0,0.001]
[1736371548121,0.053064,94256.0,94249.0,0.053068]
[1736371548325,0.3608,94250.0,94249.0,0.053068]
[1736371548524,0.2502,94257.0,94256.0,0.053064]
[1736371548925,0.1,94260.0,94247.0,0.46935455]
[1736371549134,0.1,94260.0,94259.0,0.053062]
[1736371550225,0.101,94260.0,94259.0,0.053062]
[1736371551022,0.102,94260.0,94259.0,0.053062]
[1736371553030,0.001,94260.0,94259.0,0.053062]
[1736371553232,0.28529963,94299.0,94279.0,0.053051]
[1736371553425,0.52659963,94299.0,94279.0,0.413851]
[1736371553920,0.52659963,94299.0,94279.0,1.913851]
[1736371554425,0.113,94280.0,94279.0,1.914851]
[1736371556129,0.113,94280.0,94279.0,1.92836217]
[1736371556433,0.113,94280.0,94279.0,0.42836217]
[1736371557135,0.109,94280.0,94279.0,0.42836217]
[1736371557330,0.109,94280.0,94279.0,0.43036217]
[1736371557720,0.1,94280.0,94279.0,0.43436217]
[1736371558925,0.1,94280.0,94279.0,0.43236217]
[1736371559935,0.1,94280.0,94279.0,0.43136217]
[1736371560838,0.1,94280.0,94279.0,0.42836217]
[1736371561039,0.1,94280.0,94279.0,0.43136217]
[1736371561231,0.1,94280.0,94279.0,0.43036217]
[1736371561536,0.1,94280.0,94279.0,0.42936217]
[1736371562828,0.1,94280.0,94279.0,0.43036217]
[1736371563027,0.1,94280.0,94279.0,1.93036217]
[1736371563427,0.04242266,94280.0,94279.0,1.93036217]
[1736371563631,0.2413,94299.0,94298.0,0.05304]
[1736371564937,0.2483,94299.0,94298.0,0.05404]
[1736371565533,0.2473,94299.0,94298.0,0.05404]
[1736371566036,0.2473,94299.0,94298.0,0.06699356]
[1736371567033,0.2413,94299.0,94279.0,0.3608]
[1736371567236,0.10855455,94290.0,94284.0,0.053048]
[1736371567538,0.053045,94290.0,94285.0,0.03104699]
[1736371568241,0.05305,94280.0,94279.0,0.3737464]
[1736371568440,0.05305,94280.0,94279.0,0.0199464]
[1736371568643,0.053048,94285.0,94279.0,0.0199464]
[1736371568939,0.053048,94285.0,94279.0,0.0129464]
[1736371569142,0.053048,94285.0,94284.0,0.002]
[1736371569946,0.053048,94285.0,94281.0,0.053049]
[1736371570137,0.054048,94285.0,94281.0,0.053049]
[1736371570439,0.001,94285.0,94283.0,0.053048]
[1736371570937,0.002,94285.0,94283.0,0.053048]
[1736371571344,0.004,94285.0,94283.0,0.053048]
[1736371571536,0.004,94285.0,94284.0,0.053048]
[1736371571736,0.002,94285.0,94276.0,0.47564]
[1736371571937,0.002,94285.0,94282.0,0.053049]
[1736371571938,0.053049,94283.0,94282.0,0.053049]
[1736371572541,0.002,94285.0,94284.0,0.053048]
[1736371572845,0.053047,94286.0,94284.0,0.053048]
[1736371574442,0.001,94285.0,94276.0,0.46653018]
[1736371574748,0.001,94285.0,94284.0,0.053048]
[1736371575341,0.056047,94286.0,94285.0,0.053047]
[1736371575538,0.057047,94286.0,94285.0,0.053047]
[1736371575942,0.054047,94286.0,94285.0,0.053047]
[1736371576544,0.053047,94286.0,94285.0,0.053047]
[1736371577346,0.055047,94286.0,94285.0,0.053047]
[1736371577541,0.055047,94286.0,94285.0,0.03104699]
[1736371577743,0.002,94286.0,94285.0,0.03104699]
[1736371578046,0.006,94286.0,94285.0,0.03104699]
[1736371578644,0.006,94286.0,94285.0,1.53104699]
[1736371579842,0.002,94286.0,94285.0,1.72386352]
[1736371580038,0.2,94300.0,94285.0,1.69281653]
[1736371580345,0.2,94300.0,94299.0,0.05304]
[1736371582746,0.202,94300.0,94299.0,0.05304]
[1736371583952,0.202,94300.0,94299.0,0.06542276]
[1736371584155,0.202,94300.0,94299.0,0.06642276]
[1736371584844,0.2,94300.0,94299.0,0.06642276]
[1736371586653,0.2,94300.0,94299.0,0.06542276]
[1736371586857,0.2,94300.0,94299.0,0.06642276]
[1736371588963,0.2,94300.0,94299.0,0.06542276]
[1736371589254,0.053044,94293.0,94288.0,0.053046]
[1736371589559,0.3608,94290.0,94288.0,0.053046]
[1736371589750,0.3608,94290.0,94284.0,0.18981653]
[1736371590059,0.053047,94286.0,94284.0,0.20213281]
[1736371590256,0.3608,94290.0,94284.0,0.20213281]
[1736371590652,0.3608,94290.0,94284.0,0.01231628]
[1736371590852,0.3608,94290.0,94283.0,0.053049]
[1736371591252,0.3608,94290.0,94273.0,0.3608]
[1736371591452,0.3608,94279.0,94267.0,0.0006]
[1736371591649,0.3716,94278.0,94264.0,0.18981653]
[1736371591857,0.3716,94278.0,94268.0,0.10855455]
[1736371592160,0.3716,94278.0,94275.0,0.053053]
[1736371592358,0.3716,94278.0,94265.0,0.1299]
[1736371592656,0.3716,94278.0,94277.0,0.053052]
[1736371593258,0.47215456,94290.0,94265.0,0.1299]
[1736371593259,0.053046,94289.0,94271.0,0.3608]
[1736371593453,0.299346,94289.0,94286.0,0.053047]
[1736371593655,0.053046,94288.0,94286.0,0.053047]
[1736371594051,0.053049,94283.0,94271.0,0.3608]
[1736371594257,0.053049,94283.0,94280.0,0.053051]
[1736371595258,0.053049,94283.0,94281.0,0.05305]
[1736371596468,0.055049,94283.0,94281.0,0.05305]
[1736371596655,0.055049,94283.0,94271.0,0.3608]
[1736371596863,0.002,94283.0,94282.0,0.05305]
[1736371597252,0.001,94283.0,94279.0,0.3608]
[1736371597452,0.001,94283.0,94282.0,0.05305]
[1736371597651,0.001,94283.0,94282.0,1.55305]
[1736371598150,0.005,94283.0,94282.0,0.05305]
[1736371598549,0.001,94283.0,94282.0,0.05305]
[1736371598755,0.001,94283.0,94282.0,0.05705]
[1736371598955,0.243,94299.0,94292.0,0.053044]
[1736371599269,0.243,94299.0,94291.0,0.053044]
[1736371599756,0.29604,94299.0,94291.0,0.053044]
[1736371599950,0.053041,94298.0,94291.0,0.053044]
[1736371600556,0.053046,94289.0,94282.0,0.006]
[1736371600757,0.053044,94292.0,94286.0,0.053047]
[1736371601353,0.053045,94291.0,94286.0,0.053047]
[1736371601754,0.3608,94294.0,94282.0,0.01242027]
[1736371601960,0.053044,94293.0,94287.0,0.053046]
[1736371602165,0.053044,94292.0,94287.0,0.053046]
[1736371602463,0.001,94292.0,94279.0,0.3608]
[1736371602762,0.053045,94290.0,94279.0,0.3608]
[1736371603065,0.053045,94290.0,94285.0,0.053047]
[1736371603663,0.053048,94285.0,94282.0,0.002]
[1736371603855,0.1291,94284.0,94282.0,0.002]
[1736371604257,0.053049,94283.0,94282.0,0.002]
[1736371604459,0.053051,94280.0,94279.0,0.01406892]
[1736371604768,0.053051,94280.0,94279.0,0.002]
[1736371605563,0.303651,94280.0,94279.0,0.002]
[1736371605867,0.303651,94280.0,94277.0,0.053052]
[1736371606057,0.303651,94280.0,94278.0,0.053051]
[1736371606257,0.303651,94280.0,94279.0,0.053051]
[1736371606561,0.053051,94279.0,94275.0,0.053053]
[1736371606766,0.053051,94279.0,94276.0,0.053053]
[1736371606959,0.053051,94279.0,94278.0,0.053052]
[1736371607663,0.053051,94279.0,94278.0,0.03105199]
[1736371608458,0.055051,94279.0,94278.0,0.03105199]
[1736371609563,0.003,94279.0,94278.0,0.03105199]
[1736371610960,0.003,94279.0,94278.0,0.03205199]
[1736371610961,0.002,94279.0,94278.0,0.03205199]
[1736371611154,0.053041,94298.0,94290.0,0.053045]
[1736371611359,0.053042,94297.0,94290.0,0.053045]
[1736371612055,0.1218,94299.0,94293.0,0.053043]
[1736371612569,0.3648,94294.0,94293.0,0.03104299]
[1736371613669,0.004,94294.0,94293.0,0.03104299]
[1736371613860,0.006,94294.0,94293.0,0.03104299]
[1736371614567,0.002,94294.0,94293.0,0.03104299]
[1736371614759,0.006,94294.0,94293.0,0.03204299]
[1736371615668,0.2,94300.0,94299.0,0.05304]
[1736371615868,0.2,94300.0,94299.0,0.41384]
[1736371617165,0.2,94300.0,94299.0,0.41484]
[1736371617871,0.2,94300.0,94299.0,0.41378534]
[1736371618078,0.203,94300.0,94299.0,0.41378534]
[1736371619176,0.201,94300.0,94299.0,0.41578534]
[1736371620378,0.201,94300.0,94299.0,0.41678534]
[1736371620379,0.2,94300.0,94299.0,0.41678534]
[1736371621470,0.2,94300.0,94299.0,0.41578534]
[1736371622074,0.2,94300.0,94299.0,0.41678534]
[1736371622664,0.2,94300.0,94299.0,0.42278534]
[1736371622872,0.201,94300.0,94299.0,0.42278534]
[1736371624568,0.201,94300.0,94299.0,0.42478534]
[1736371624965,0.2,94300.0,94299.0,0.41878534]
[1736371625982,0.1638,94300.0,94299.0,0.42278534]
[1736371626372,0.1638,94300.0,94299.0,0.42378534]
[1736371627765,0.1638,94300.0,94299.0,0.42078534]
[1736371627962,0.1638,94300.0,94299.0,0.42278534]
[1736371628479,0.1628,94300.0,94299.0,0.41678534]
[1736371628777,0.1638,94300.0,94299.0,0.42278534]
[1736371629070,0.1638,94300.0,94299.0,0.41678534]
[1736371629376,0.1638,94300.0,94299.0,0.42178534]
[1736371629874,0.1638,94300.0,94299.0,0.42278534]
[1736371630269,0.1638,94300.0,94299.0,0.41978534]
[1736371630472,0.1638,94300.0,94299.0,0.42278534]
[1736371630975,0.1638,94300.0,94299.0,0.78358534]
[1736371631179,0.09541789,94300.0,94299.0,0.78358534]
[1736371631364,0.09541789,94300.0,94299.0,0.78158534]
[1736371631679,0.06948789,94300.0,94299.0,0.78158534]
[1736371631880,0.06948789,94300.0,94299.0,2.28158534]
[1736371632470,0.06948789,94300.0,94299.0,2.28258534]
[1736371632975,0.06948789,94300.0,94299.0,2.27658534]
[1736371633172,0.06948789,94300.0,94299.0,2.28558534]
[1736371633972,0.06948789,94300.0,94299.0,2.28358534]
[1736371634172,0.06948789,94300.0,94299.0,2.28758534]
[1736371634878,0.06848789,94300.0,94299.0,2.27658534]
[1736371635079,0.06948789,94300.0,94299.0,2.28258534]
[1736371635572,0.06948789,94300.0,94299.0,2.28058534]
[1736371635774,0.06948789,94300.0,94299.0,2.28458534]
[1736371636974,0.06848789,94300.0,94299.0,2.28358534]
[1736371637181,0.06948789,94300.0,94299.0,2.28358534]
[1736371638083,0.06948789,94300.0,94299.0,2.28058534]
[1736371638271,0.06948789,94300.0,94299.0,2.28258534]
[1736371638882,0.06948789,94300.0,94299.0,2.27958534]
[1736371639085,0.06948789,94300.0,94299.0,2.28258534]
[1736371639579,0.02015705,94300.0,94299.0,2.27758534]
[1736371639782,0.02015705,94300.0,94299.0,2.28258534]
[1736371640283,0.02015705,94300.0,94299.0,2.27758534]
[1736371640474,0.02115705,94300.0,94299.0,2.27958534]
[1736371640673,0.02115705,94300.0,94299.0,2.28258534]
[1736371641383,0.02115705,94300.0,94299.0,2.28158534]
[1736371642086,0.02015705,94300.0,94299.0,2.28158534]
[1736371642475,0.02015705,94300.0,94299.0,2.28058534]
[1736371642876,0.1,94320.0,94319.0,0.053029]
[1736371644479,0.101,94320.0,94319.0,0.053029]
[1736371645180,0.105,94320.0,94319.0,0.053029]
[1736371645382,0.105,94320.0,94319.0,0.06460566]
[1736371646591,0.101,94320.0,94319.0,0.06660566]
[1736371646792,0.1,94320.0,94319.0,0.06760566]
[1736371648682,0.03433988,94320.0,94319.0,0.06760566]
[1736371648887,0.02870001,94320.0,94319.0,0.06760566]
[1736371649103,0.02870001,94320.0,94319.0,1.56760566]
[1736371649499,0.1,94340.0,94339.0,0.053018]
[1736371649703,0.1,94340.0,94339.0,0.413818]
[1736371650697,0.109,94340.0,94339.0,0.414818]
[1736371651407,0.107,94340.0,94339.0,0.416818]
[1736371652603,0.1,94340.0,94331.0,0.1902316]
[1736371652998,0.1,94340.0,94339.0,0.053018]
[1736371653397,0.1,94340.0,94339.0,0.055018]
[1736371654915,0.1,94340.0,94339.0,0.415818]
[1736371656006,0.101,94340.0,94339.0,1.913818]
[1736371656615,0.1,94340.0,94339.0,1.917818]
[1736371656814,0.1,94340.0,94339.0,1.919818]
[1736371657011,0.2414,94359.0,94339.0,1.8668]
[1736371657212,0.1,94360.0,94358.0,0.3608]
[1736371657413,0.1,94360.0,94359.0,0.053007]
[1736371657714,0.131,94379.0,94378.0,0.052996]
[1736371657911,0.1231,94382.0,94378.0,0.413796]
[1736371659211,0.1314,94386.0,94378.0,0.413796]
[1736371660306,0.1314,94386.0,94378.0,0.42544326]
[1736371660507,0.1314,94386.0,94378.0,0.42644326]
[1736371660713,0.109,94380.0,94378.0,0.42644326]
[1736371660914,0.1277,94379.0,94378.0,0.37344726]
[1736371661211,0.1277,94379.0,94378.0,0.37244726]
[1736371662817,0.1317,94379.0,94378.0,0.37244726]
[1736371663418,0.1337,94379.0,94378.0,0.37244726]
[1736371664220,0.1327,94379.0,94378.0,0.37244726]
[1736371664417,0.1337,94379.0,94378.0,0.37244726]
[1736371664817,0.1337,94379.0,94378.0,0.01164726]
[1736371665009,0.1337,94379.0,94365.0,0.053003]
[1736371665213,0.1337,94379.0,94363.0,0.3608]
[1736371665214,0.10855455,94375.0,94363.0,0.3608]
[1736371665615,0.053003,94367.0,94363.0,0.3608]
[1736371665918,0.2608,94366.0,94363.0,0.3608]
[1736371666106,0.05301,94355.0,94345.0,0.3608]
[1736371666313,0.053012,94351.0,94345.0,0.3608]
[1736371667321,0.053012,94351.0,94345.0,0.38171612]
[1736371667622,0.053012,94351.0,94345.0,0.43473112]
[1736371667822,0.053012,94351.0,94345.0,0.07393112]
[1736371668019,0.054012,94351.0,94345.0,0.07793112]
[1736371668215,0.3608,94346.0,94345.0,0.07793112]
[1736371669120,0.001,94351.0,94345.0,0.02491612]
[1736371669422,0.001,94351.0,94350.0,0.053012]
[1736371670016,0.001,94351.0,94350.0,1.553012]
[1736371670425,0.10855455,94360.0,94350.0,1.5]
[1736371670623,0.10855455,94360.0,94350.0,1.502]
[1736371671224,0.10855455,94360.0,94350.0,1.504]
[1736371671524,0.10855455,94360.0,94353.0,0.053011]
[1736371672126,0.10855455,94360.0,94350.0,1.50356]
[1736371672426,0.49060001,94366.0,94350.0,1.61155455]
[1736371672629,0.4898,94366.0,94350.0,1.503]
[1736371672820,0.10855455,94360.0,94350.0,1.503]
[1736371673025,0.10855455,94360.0,94350.0,1.5]
[1736371673228,0.10855455,94360.0,94357.0,0.053008]
[1736371673530,0.54360301,94366.0,94357.0,0.053008]
[1736371673714,0.542803,94366.0,94350.0,0.0026]
[1736371673920,0.542803,94366.0,94359.0,0.053007]
[1736371674325,0.542803,94366.0,94360.0,0.053007]
[1736371674724,0.543803,94366.0,94360.0,0.053007]
[1736371674921,0.543803,94366.0,94361.0,0.053006]
[1736371675626,0.543803,94366.0,94362.0,0.053006]
[1736371676220,0.542803,94366.0,94363.0,0.053005]
[1736371676420,0.543803,94366.0,94363.0,0.053005]
[1736371677122,0.544803,94366.0,94364.0,0.053004]
[1736371677327,0.548803,94366.0,94364.0,0.053004]
[1736371677523,0.548803,94366.0,94364.0,0.03100399]
[1736371677829,0.053004,94365.0,94364.0,0.03100399]
[1736371680125,0.053004,94365.0,94357.0,0.053008]
[1736371680332,0.053004,94365.0,94347.0,0.3608]
[1736371680333,0.053007,94361.0,94360.0,0.053006]
[1736371681723,0.053007,94361.0,94339.0,0.00158978]
[1736371681724,0.053013,94348.0,94339.0,0.00158978]
[1736371681928,0.053018,94340.0,94339.0,0.00158978]
[1736371682234,0.3608,94342.0,94341.0,0.053017]
[1736371683330,0.053018,94340.0,94339.0,0.00158978]
[1736371683522,0.3608,94342.0,94341.0,0.053017]
[1736371683720,0.413817,94342.0,94341.0,0.053017]
[1736371684225,0.053018,94340.0,94339.0,0.00258978]
[1736371684925,0.053018,94340.0,94339.0,0.00158978]
[1736371686528,0.055018,94340.0,94339.0,0.00158978]
[1736371687229,0.053018,94340.0,94339.0,0.00158978]
[1736371687426,0.058018,94340.0,94339.0,0.00158978]
[1736371687733,0.053021,94335.0,94333.0,0.03261177]
[1736371687937,0.3608,94334.0,94333.0,0.03261177]
[1736371689135,0.3658,94334.0,94333.0,0.03261177]
[1736371689829,0.3678,94334.0,94333.0,0.03261177]
[1736371690030,0.053022,94332.0,94331.0,0.01171955]
[1736371690225,0.053022,94332.0,94327.0,0.184425]
[1736371690824,0.053022,94332.0,94327.0,0.14336414]
[1736371691029,0.36564,94334.0,94329.0,0.053024]
[1736371691226,0.3648,94334.0,94329.0,0.053024]